{"text_format":"1","workbook":"xlsx","n_sheets":1,"sheets":["2024"],"not_rendered":{"charts":0,"images":1,"macros":1,"external_links":0,"defined_names":2,"comments":0,"pivot_tables":0},"unopened":[],"bounds":{"document_bytes":16777216,"sheet_cells":100000,"rows_first":2000,"rows_last":500,"rows_between":2000,"halvings":0,"cell_chars":16384,"cell_head_chars":4096},"cells_cut":0,"cells_raw":0,"read":"whole","date_system":"1900"}

{"sheet":"2024","index":0,"n_rows":117,"n_cols":22,"rows_kept":117,"cut":false,"hidden":false,"merged":[[3,1,3,4],[10,8,11,8],[10,18,10,19],[10,6,11,6],[10,9,10,17],[10,7,11,7]]}
["hrnkové rostliny - mladé rostliny na multiplatech - 2024"]
["objednávkový formulář - kupní smlouva mezi"]
["odběratel"]
["firma"]
["adresa"]
["IČ/DIČ"]
["dodavatel"]
["FLORENSIS HOLLAND B.V. zastoupený THOOLEN s.r.o., IČ 48950700, Rakovník"]
[null,null,null,null,null,null,null,"týden dodání",null,6,8,10,12,16,18,20,22,24]
["ceny jsou uváděny vč. licencí a dopravy do vaší firmy",null,null,null,null,null,null,"počet plat celkem",{"$f":"SUM(R10+Q10+P10+O10+N10+M10+L10+K10+J10)","v":0},{"$f":"SUM(J13:J1095)","v":0},{"$f":"SUM(K13:K1095)","v":0},0,0,0,0,0,0,0,null,null,{"$f":"SUM(U13:U123)","v":0},{"$f":"SUM(V13:V123)","v":0}]
[null,null,null,null,null,null,"mn. v 1 buňce","pikírováno","licence","datum expedice",null,null,null,null,null,null,null,null,"cena"]
["code","plato","gar.","Artikelbezeichnung","new","skupina",null,null,null,"7.2","21.2","6.3","20.3","17.4","1.5","15.5","29.5","12.6","rostlina","plato","za objed.","s DPH"]
["37533",128,126,"Campanula portenschlagiana Zenn White","new","řízek",1,"N","A",null,null,null,null,null,null,null,null,null,14.35,1807.69,{"$f":"S13*(R13+Q13+P13+O13+N13+M13+L13+K13+J13)","v":0},{"$f":"U13*1.15","v":0}]
["37328",288,284,"Capsicum annuum Joker Black",null,"semenáč",1,"N",null,null,null,null,null,null,null,null,null,null,5.91,1677.84,{"$f":"S14*(R14+Q14+P14+O14+N14+M14+L14+K14+J14)","v":0},{"$f":"U14*1.15","v":0}]
["37327",288,284,"Capsicum annuum Joker Original",null,"semenáč",1,"N",null,null,null,null,null,null,null,null,null,null,5.91,1677.84,0,0]
["37329",288,284,"Capsicum annuum Joker Red",null,"semenáč",1,"N",null,null,null,null,null,null,null,null,null,null,5.91,1677.84,0,0]
["37330",288,284,"Capsicum annuum Salsa Dark Orange",null,"semenáč",1,"N",null,null,null,null,null,null,null,null,null,null,5.3,1505.91,0,0]
["37333",288,284,"Capsicum annuum Salsa Red",null,"semenáč",1,"N",null,null,null,null,null,null,null,null,null,null,5.3,1505.91,0,0]
["42083",288,284,"Capsicum annuum Salsa Yellow Impr.",null,"semenáč",1,"N",null,null,null,null,null,null,null,null,null,null,5.3,1505.91,0,0]
["37336",288,284,"Capsicum annuum Samba Dark Orange",null,"semenáč",1,"N",null,null,null,null,null,null,null,null,null,null,5.41,1536.8,0,0]
["37338",288,284,"Capsicum annuum Samba Red",null,"semenáč",1,"N",null,null,null,null,null,null,null,null,null,null,5.41,1536.8,0,0]
["37339",288,284,"Capsicum annuum Samba Yellow",null,"semenáč",1,"N",null,null,null,null,null,null,null,null,null,null,5.41,1536.8,0,0]
["43196",288,284,"Capsicum annuum Torero Dark Orange","new","semenáč",1,"N",null,null,null,null,null,null,null,null,null,null,5.91,1677.84,0,0]
["43195",288,284,"Capsicum annuum Torero Multicolour Orange","new","semenáč",1,"N",null,null,null,null,null,null,null,null,null,null,5.91,1677.84,0,0]
["37325",288,284,"Capsicum annuum Torero Multicolour Red","new","semenáč",1,"N",null,null,null,null,null,null,null,null,null,null,5.91,1677.84,0,0]
["43193",288,284,"Capsicum annuum Torero Purple","new","semenáč",1,"N",null,null,null,null,null,null,null,null,null,null,5.91,1677.84,0,0]
["43194",288,284,"Capsicum annuum Torero Red","new","semenáč",1,"N",null,null,null,null,null,null,null,null,null,null,5.91,1677.84,0,0]
["43197",288,284,"Capsicum annuum Torero Yellow","new","semenáč",1,"N",null,null,null,null,null,null,null,null,null,null,5.91,1677.84,0,0]
["42945",84,82,"Dianthus caryophyllus BFF Mixmasters® ","new","řízek",3,"N","A",null,null,null,null,null,null,null,null,null,24.09,1975.23,0,0]
["37780",180,178,"Dianthus caryophyllus BFF Purple",null,"řízek",1,"N","A",null,null,null,null,null,null,null,null,null,10.029999999999999,1786.21,0,0]
["41669",180,178,"Dianthus caryophyllus BFF Red",null,"řízek",1,"N","A",null,null,null,null,null,null,null,null,null,10.029999999999999,1786.21,0,0]
["41697",180,178,"Dianthus caryophyllus BFF Rose","new","řízek",1,"N","A",null,null,null,null,null,null,null,null,null,10.029999999999999,1786.21,0,0]
["35252",180,178,"Dianthus caryophyllus Code® Bicolour",null,"řízek",1,"N","A",null,null,null,null,null,null,null,null,null,8.7799999999999994,1563.6,0,0]
["36740",180,178,"Dianthus caryophyllus Code® Bright Red",null,"řízek",1,"N","A",null,null,null,null,null,null,null,null,null,8.7799999999999994,1563.6,0,0]
["38386",84,82,"Dianthus caryophyllus Code® Mixmasters® Digi",null,"řízek",3,"N","A",null,null,null,null,null,null,null,null,null,22.41,1837.61,0,0]
["36743",180,178,"Dianthus caryophyllus Code® Pink",null,"řízek",1,"N","A",null,null,null,null,null,null,null,null,null,8.7799999999999994,1563.6,0,0]
["35250",180,178,"Dianthus caryophyllus Code® Purple Dark Center",null,"řízek",1,"N","A",null,null,null,null,null,null,null,null,null,8.7799999999999994,1563.6,0,0]
["35249",180,178,"Dianthus caryophyllus Code® Salmon",null,"řízek",1,"N","A",null,null,null,null,null,null,null,null,null,8.7799999999999994,1563.6,0,0]
["35246",180,178,"Dianthus caryophyllus Code® White",null,"řízek",1,"N","A",null,null,null,null,null,null,null,null,null,8.7799999999999994,1563.6,0,0]
["35549",180,178,"Helianthus annuus Sunray Yellow",null,"semenáč",1,"N",null,null,null,null,null,null,null,null,null,null,6.63,1180.97,0,0]
["35549",288,220,"Helianthus annuus Sunray Yellow",null,"semenáč",1,"N",null,null,null,null,null,null,null,null,null,null,5.01,1102.6500000000001,0,0]
["42458",180,178,"Helianthus annuus Sunsation® F1 Compact Yellow","new","semenáč",1,"N",null,null,null,null,null,null,null,null,null,null,6.63,1180.97,0,0]
["42458",288,220,"Helianthus annuus Sunsation® F1 Compact Yellow","new","semenáč",1,"N",null,null,null,null,null,null,null,null,null,null,5.33,1172.04,0,0]
["16032",180,178,"Helianthus annuus Sunsation® F1 Yellow",null,"semenáč",1,"N",null,null,null,null,null,null,null,null,null,null,6.63,1180.97,0,0]
["17585",84,84,"Hibiscus moscheutos Luna F1 Pink Swirl",null,"semenáč",1,"N",null,null,null,null,null,null,null,null,null,null,14.56,1223.3499999999999,0,0]
["17583",84,84,"Hibiscus moscheutos Luna F1 Red",null,"semenáč",1,"N",null,null,null,null,null,null,null,null,null,null,14.56,1223.3499999999999,0,0]
["17586",84,84,"Hibiscus moscheutos Luna F1 Rose",null,"semenáč",1,"N",null,null,null,null,null,null,null,null,null,null,14.56,1223.3499999999999,0,0]
["17587",84,84,"Hibiscus moscheutos Luna F1 White",null,"semenáč",1,"N",null,null,null,null,null,null,null,null,null,null,14.56,1223.3499999999999,0,0]
["41844",84,84,"Mandevilla sanderi Agate XXL Rose & Pink","new","řízek",1,"N","A",null,null,null,null,null,null,null,null,null,26.25,2204.75,0,0]
["41793",84,84,"Mandevilla sanderi Agate XXL Scarlet",null,"řízek",1,"N","A",null,null,null,null,null,null,null,null,null,29.97,2517.7800000000002,0,0]
["41792",84,84,"Mandevilla sanderi Agate XXL White",null,"řízek",1,"N","A",null,null,null,null,null,null,null,null,null,29.97,2517.7800000000002,0,0]
["38282",84,84,"Mandevilla sanderi Citrine Yellow 2.0","new","řízek",1,"N","A",null,null,null,null,null,null,null,null,null,29.97,2517.7800000000002,0,0]
["41757",84,84,"Mandevilla sanderi Jade Grenat",null,"řízek",1,"N","A",null,null,null,null,null,null,null,null,null,22.62,1900.25,0,0]
["38274",84,84,"Mandevilla sanderi Jade Pink",null,"řízek",1,"N","A",null,null,null,null,null,null,null,null,null,22.62,1900.25,0,0]
["38275",84,84,"Mandevilla sanderi Jade Red",null,"řízek",1,"N","A",null,null,null,null,null,null,null,null,null,22.62,1900.25,0,0]
["38276",84,84,"Mandevilla sanderi Jade Rose",null,"řízek",1,"N","A",null,null,null,null,null,null,null,null,null,22.62,1900.25,0,0]
["38277",84,84,"Mandevilla sanderi Jade Scarlet",null,"řízek",1,"N","A",null,null,null,null,null,null,null,null,null,22.62,1900.25,0,0]
["38278",84,84,"Mandevilla sanderi Jade White",null,"řízek",1,"N","A",null,null,null,null,null,null,null,null,null,22.62,1900.25,0,0]
["38279",84,84,"Mandevilla sanderi Jade XXL Red","new","řízek",1,"N","A",null,null,null,null,null,null,null,null,null,24.43,2052.5,0,0]
["38280",84,84,"Mandevilla sanderi Jade XXL Strawberry Red","new","řízek",1,"N","A",null,null,null,null,null,null,null,null,null,24.43,2052.5,0,0]
["38281",84,84,"Mandevilla sanderi Jade XXL White","new","řízek",1,"N","A",null,null,null,null,null,null,null,null,null,24.43,2052.5,0,0]
["38283",84,84,"Mandevilla sanderi Opal Fuchsia Flamme",null,"řízek",1,"N","A",null,null,null,null,null,null,null,null,null,22.62,1900.25,0,0]
["38284",84,84,"Mandevilla sanderi Opal Grenat",null,"řízek",1,"N","A",null,null,null,null,null,null,null,null,null,22.62,1900.25,0,0]
["38285",84,84,"Mandevilla sanderi Opal Red (Topaz Vermillion)",null,"řízek",1,"N","A",null,null,null,null,null,null,null,null,null,22.62,1900.25,0,0]
["38286",84,84,"Mandevilla sanderi Quartz Pink & Yellow","new","řízek",1,"N","A",null,null,null,null,null,null,null,null,null,24.43,2052.5,0,0]
["41790",84,84,"Mandevilla sanderi Sundaville® Beauty Bright Red",null,"řízek",1,"N","A",null,null,null,null,null,null,null,null,null,21.53,1808.9,0,0]
["42228",84,84,"Mandevilla sanderi Sundaville® Beauty White","new","řízek",1,"N","A",null,null,null,null,null,null,null,null,null,21.53,1808.9,0,0]
["19246",84,84,"Mandevilla sanderi Sundaville® Burgundy",null,"řízek",1,"N","A",null,null,null,null,null,null,null,null,null,22.98,1930.7,0,0]
["17027",84,84,"Mandevilla sanderi Sundaville® Classic Red",null,"řízek",1,"N","A",null,null,null,null,null,null,null,null,null,22.98,1930.7,0,0]
["17026",84,84,"Mandevilla sanderi Sundaville® Cream Pink",null,"řízek",1,"N","A",null,null,null,null,null,null,null,null,null,24.8,2082.9499999999998,0,0]
["36724",84,84,"Mandevilla sanderi Sundaville® Early Scarlet",null,"řízek",1,"N","A",null,null,null,null,null,null,null,null,null,22.98,1930.7,0,0]
["37141",84,84,"Mandevilla sanderi Sundaville® Fashion Pink",null,"řízek",1,"N","A",null,null,null,null,null,null,null,null,null,22.98,1930.7,0,0]
["36721",84,84,"Mandevilla sanderi Sundaville® Fashion Red",null,"řízek",1,"N","A",null,null,null,null,null,null,null,null,null,22.98,1930.7,0,0]
["36720",84,84,"Mandevilla sanderi Sundaville® Fuchsia Pink",null,"řízek",1,"N","A",null,null,null,null,null,null,null,null,null,22.98,1930.7,0,0]
["30327",84,84,"Mandevilla sanderi Sundaville® Pearl",null,"řízek",1,"N","A",null,null,null,null,null,null,null,null,null,22.98,1930.7,0,0]
["32012",84,84,"Mandevilla sanderi Sundaville® Pink",null,"řízek",1,"N","A",null,null,null,null,null,null,null,null,null,22.98,1930.7,0,0]
["19247",84,84,"Mandevilla sanderi Sundaville® Velvet Red",null,"řízek",1,"N","A",null,null,null,null,null,null,null,null,null,22.98,1930.7,0,0]
["37139",84,84,"Mandevilla sanderi Sundaville® White",null,"řízek",1,"N","A",null,null,null,null,null,null,null,null,null,22.98,1930.7,{"$f":"S78*(R78+Q78+P78+O78+N78+M78+L78+K78+J78)","v":0},{"$f":"U78*1.15","v":0}]
["41726",84,84,"Mandevilla sanderi Tourmaline Pink","new","řízek",1,"N","A",null,null,null,null,null,null,null,null,null,29.97,2517.7800000000002,0,0]
["41727",84,84,"Mandevilla sanderi Tourmaline Rose","new","řízek",1,"N","A",null,null,null,null,null,null,null,null,null,29.97,2517.7800000000002,0,0]
["37373",84,84,"Mandevilla sanderi Velvet Cream","new","řízek",1,"N","A",null,null,null,null,null,null,null,null,null,22.62,1900.25,0,0]
["37374",84,84,"Mandevilla sanderi Velvet Hot Pink","new","řízek",1,"N","A",null,null,null,null,null,null,null,null,null,22.62,1900.25,0,0]
["37375",84,84,"Mandevilla sanderi Velvet Pink","new","řízek",1,"N","A",null,null,null,null,null,null,null,null,null,22.62,1900.25,0,0]
["37376",84,84,"Mandevilla sanderi Velvet Rose","new","řízek",1,"N","A",null,null,null,null,null,null,null,null,null,22.62,1900.25,0,0]
["33934",180,178,"Pentas lanceolata Lucky Star Lavender",null,"semenáč",3,"N",null,null,null,null,null,null,null,null,null,null,9.83,1749.43,0,0]
["33934",288,284,"Pentas lanceolata Lucky Star Lavender",null,"semenáč",1,"N",null,null,null,null,null,null,null,null,null,null,5.5,1562.53,0,0]
["36641",180,178,"Pentas lanceolata Lucky Star Lipstick",null,"semenáč",3,"N",null,null,null,null,null,null,null,null,null,null,9.83,1749.43,0,0]
["36641",288,284,"Pentas lanceolata Lucky Star Lipstick",null,"semenáč",1,"N",null,null,null,null,null,null,null,null,null,null,5.5,1562.53,0,0]
["34510",180,178,"Pentas lanceolata Lucky Star Pink Deep",null,"semenáč",3,"N",null,null,null,null,null,null,null,null,null,null,9.83,1749.43,0,0]
["34510",288,284,"Pentas lanceolata Lucky Star Pink Deep",null,"semenáč",1,"N",null,null,null,null,null,null,null,null,null,null,5.5,1562.53,0,0]
["34511",180,178,"Pentas lanceolata Lucky Star Red Dark",null,"semenáč",3,"N",null,null,null,null,null,null,null,null,null,null,9.83,1749.43,0,0]
["34511",288,284,"Pentas lanceolata Lucky Star Red Dark",null,"semenáč",1,"N",null,null,null,null,null,null,null,null,null,null,5.5,1562.53,0,0]
["33010",180,178,"Pentas lanceolata Lucky Star Violet",null,"semenáč",3,"N",null,null,null,null,null,null,null,null,null,null,9.83,1749.43,0,0]
["33010",288,284,"Pentas lanceolata Lucky Star Violet",null,"semenáč",1,"N",null,null,null,null,null,null,null,null,null,null,5.5,1562.53,0,0]
["33011",180,178,"Pentas lanceolata Lucky Star White",null,"semenáč",3,"N",null,null,null,null,null,null,null,null,null,null,9.83,1749.43,0,0]
["33011",288,284,"Pentas lanceolata Lucky Star White",null,"semenáč",1,"N",null,null,null,null,null,null,null,null,null,null,5.5,1562.53,0,0]
["11895",180,178,"Platycodon grandiflorus Astra F1 Blue",null,"semenáč",5,"N",null,null,null,null,null,null,null,null,null,null,8.5,1513.27,0,0]
["33120",180,178,"Platycodon grandiflorus Astra F1 MixMasters® White & Blue",null,"semenáč",4,"N",null,null,null,null,null,null,null,null,null,null,9.4700000000000006,1685.55,0,0]
["11896",180,178,"Platycodon grandiflorus Astra F1 Rose",null,"semenáč",5,"N",null,null,null,null,null,null,null,null,null,null,8.5,1513.27,0,0]
["11897",180,178,"Platycodon grandiflorus Astra F1 White",null,"semenáč",5,"N",null,null,null,null,null,null,null,null,null,null,8.5,1513.27,0,0]
["35511",180,178,"Platycodon grandiflorus Pop Star™ Blue",null,"semenáč",4,"N",null,null,null,null,null,null,null,null,null,null,8.58,1526.82,0,0]
["37359",180,178,"Platycodon grandiflorus Pop Star™ Pink Impr.",null,"semenáč",4,"N",null,null,null,null,null,null,null,null,null,null,8.58,1526.82,0,0]
["37360",180,178,"Platycodon grandiflorus Pop Star™ White Impr.",null,"semenáč",4,"N",null,null,null,null,null,null,null,null,null,null,8.58,1526.82,0,0]
["37324",84,84,"Solanum pseudocapsicum Jupiter",null,"semenáč",1,"N",null,null,null,null,null,null,null,null,null,null,10.72,900.58,0,0]
["37324",180,178,"Solanum pseudocapsicum Jupiter",null,"semenáč",1,"N",null,null,null,null,null,null,null,null,null,null,7.45,1325.5,0,0]
["37324",288,284,"Solanum pseudocapsicum Jupiter",null,"semenáč",1,"N",null,null,null,null,null,null,null,null,null,null,5.53,1569.74,0,0]
["37345",84,84,"Solanum pseudocapsicum Thurino",null,"semenáč",1,"N",null,null,null,null,null,null,null,null,null,null,10.210000000000001,857.65,0,0]
["37345",180,178,"Solanum pseudocapsicum Thurino",null,"semenáč",1,"N",null,null,null,null,null,null,null,null,null,null,7.19,1279.69,0,0]
["37345",288,284,"Solanum pseudocapsicum Thurino",null,"semenáč",1,"N",null,null,null,null,null,null,null,null,null,null,4.78,1357.66,0,0]
["37346",84,84,"Solanum pseudocapsicum Thurino Light",null,"semenáč",1,"N",null,null,null,null,null,null,null,null,null,null,10.210000000000001,857.65,0,0]
["37346",180,178,"Solanum pseudocapsicum Thurino Light",null,"semenáč",1,"N",null,null,null,null,null,null,null,null,null,null,7.19,1279.69,0,0]
["37346",288,284,"Solanum pseudocapsicum Thurino Light",null,"semenáč",1,"N",null,null,null,null,null,null,null,null,null,null,4.78,1357.66,0,0]
["19096",288,284,"Torenia fournieri Kauai Deep Blue",null,"semenáč",1,"N",null,null,null,null,null,null,null,null,null,null,3.66,1040.58,0,0]
["19098",288,284,"Torenia fournieri Kauai Magenta",null,"semenáč",1,"N",null,null,null,null,null,null,null,null,null,null,3.66,1040.58,0,0]
["19808",288,284,"Torenia fournieri Kauai Mix",null,"semenáč",1,"N",null,null,null,null,null,null,null,null,null,null,3.66,1040.58,0,0]
["19099",288,284,"Torenia fournieri Kauai Rose",null,"semenáč",1,"N",null,null,null,null,null,null,null,null,null,null,3.66,1040.58,0,0]
["19100",288,284,"Torenia fournieri Kauai White",null,"semenáč",1,"N",null,null,null,null,null,null,null,null,null,null,3.66,1040.58,0,0]